[Event "Late-Titled-Tuesday-Blitz-September-05-2023"]
[Site "Chess.com"]
[Date "2023.09.05"]
[Round "1"]
[White "Grossboss19"]
[Black "Bigfish1995"]
[Result "0-1"]
[WhiteElo "2499"]
[BlackElo "3078"]
[TimeControl "180+1"]
[EndTime "14:05:01 PDT"]
[Termination "Bigfish1995 won by resignation"]

1. d4 {[%clk 0:02:53.5]} 1... a6 {[%clk 0:03:00.1]} 2. Nf3 {[%clk 0:02:53.2]}
2... b5 {[%clk 0:02:59.9]} 3. a4 {[%clk 0:02:52.4]} 3... Bb7 {[%clk 0:02:59.6]}
4. axb5 {[%clk 0:02:51.6]} 4... axb5 {[%clk 0:03:00.5]} 5. Rxa8 {[%clk
0:02:52.1]} 5... Bxa8 {[%clk 0:03:01.4]} 6. e3 {[%clk 0:02:52.8]} 6... b4 {[%clk
0:03:01.7]} 7. Bd3 {[%clk 0:02:51.1]} 7... Nf6 {[%clk 0:03:01]} 8. O-O {[%clk
0:02:51.1]} 8... e6 {[%clk 0:03:01.4]} 9. c4 {[%clk 0:02:48]} 9... bxc3 {[%clk
0:02:57.9]} 10. bxc3 {[%clk 0:02:47.5]} 10... c5 {[%clk 0:02:57.8]} 11. Nbd2
{[%clk 0:02:44.6]} 11... Be7 {[%clk 0:02:53.1]} 12. e4 {[%clk 0:02:41.8]} 12...
O-O {[%clk 0:02:53.4]} 13. e5 {[%clk 0:02:39.1]} 13... Nd5 {[%clk 0:02:53.6]}
14. Ne4 {[%clk 0:02:30.7]} 14... cxd4 {[%clk 0:02:53.9]} 15. cxd4 {[%clk
0:02:31.1]} 15... Nc6 {[%clk 0:02:53.2]} 16. Qe2 {[%clk 0:02:09.6]} 16... Qb6
{[%clk 0:02:38.5]} 17. Rd1 {[%clk 0:01:55.8]} 17... h6 {[%clk 0:02:09.2]} 18.
Ng3 {[%clk 0:01:38.9]} 18... Nc3 {[%clk 0:02:06.1]} 19. Qc2 {[%clk 0:01:25.2]}
19... Nxd1 {[%clk 0:02:05.2]} 20. Qxd1 {[%clk 0:01:26.1]} 20... Nb4 {[%clk
0:02:04.8]} 21. Bb1 {[%clk 0:01:23.1]} 21... Rc8 {[%clk 0:02:00.9]} 22. Nh5
{[%clk 0:01:19.4]} 22... Bxf3 {[%clk 0:01:59.4]} 23. gxf3 {[%clk 0:01:18]} 23...
Nd5 {[%clk 0:01:55.2]} 24. Bd2 {[%clk 0:01:07.1]} 24... Qxd4 {[%clk 0:01:51.8]}
25. Nxg7 {[%clk 0:01:01.9]} 25... Bg5 {[%clk 0:01:51.6]} 26. f4 {[%clk
0:00:58.2]} 26... Nxf4 {[%clk 0:01:48.6]} 27. h4 {[%clk 0:00:46.8]} 27... Qd5
{[%clk 0:01:38.2]} 28. Qf1 {[%clk 0:00:40.4]} 28... Qxd2 {[%clk 0:01:35.9]} 29.
hxg5 {[%clk 0:00:40.5]} 29... Rc1 {[%clk 0:01:35.9]} 0-1

[Event "Late-Titled-Tuesday-Blitz-September-05-2023"]
[Site "Chess.com"]
[Date "2023.09.05"]
[Round "1"]
[White "tgpgoat"]
[Black "Firouzja2003"]
[Result "0-1"]
[WhiteElo "2505"]
[BlackElo "3116"]
[TimeControl "180+1"]
[EndTime "14:05:08 PDT"]
[Termination "Firouzja2003 won by resignation"]

1. Nf3 {[%clk 0:02:59]} 1... Nf6 {[%clk 0:02:59.3]} 2. b3 {[%clk 0:02:56.9]}
2... g6 {[%clk 0:02:59.3]} 3. Bb2 {[%clk 0:02:57.2]} 3... Bg7 {[%clk 0:02:59.7]}
4. e3 {[%clk 0:02:55.7]} 4... O-O {[%clk 0:02:59.9]} 5. Be2 {[%clk 0:02:55.6]}
5... d6 {[%clk 0:03:00.5]} 6. O-O {[%clk 0:02:55.7]} 6... e5 {[%clk 0:03:00.7]}
7. d3 {[%clk 0:02:55.3]} 7... Nh5 {[%clk 0:02:52.1]} 8. c4 {[%clk 0:02:47.9]}
8... e4 {[%clk 0:02:44.2]} 9. Bxg7 {[%clk 0:02:06.4]} 9... exf3 {[%clk
0:02:42.2]} 10. Bxf8 {[%clk 0:02:06.5]} 10... fxe2 {[%clk 0:02:42.6]} 11. Qxe2
{[%clk 0:02:05.1]} 11... Qxf8 {[%clk 0:02:43.2]} 12. Nc3 {[%clk 0:02:04.1]}
12... c6 {[%clk 0:02:43.3]} 13. d4 {[%clk 0:02:03.7]} 13... Qe7 {[%clk
0:02:37.9]} 14. Rad1 {[%clk 0:01:59.1]} 14... Nd7 {[%clk 0:02:34]} 15. e4 {[%clk
0:01:53.3]} 15... Ndf6 {[%clk 0:02:21.8]} 16. Rfe1 {[%clk 0:01:50.7]} 16... Be6
{[%clk 0:02:11.2]} 17. d5 {[%clk 0:01:34.7]} 17... Bd7 {[%clk 0:02:08.6]} 18. c5
{[%clk 0:01:25.8]} 18... dxc5 {[%clk 0:02:02.1]} 19. d6 {[%clk 0:01:06.2]} 19...
Qe5 {[%clk 0:01:56.9]} 20. g3 {[%clk 0:01:04.4]} 20... Qxc3 {[%clk 0:01:55.6]}
21. Rd3 {[%clk 0:00:51.1]} 21... Qb4 {[%clk 0:01:51.4]} 22. f4 {[%clk
0:00:41.9]} 22... Re8 {[%clk 0:01:48.3]} 23. e5 {[%clk 0:00:32.2]} 23... Nd5
{[%clk 0:01:48.5]} 24. Qd2 {[%clk 0:00:24.2]} 24... Qxd2 {[%clk 0:01:42.8]} 25.
Rxd2 {[%clk 0:00:25.1]} 25... Ng7 {[%clk 0:01:40.8]} 26. Rc1 {[%clk 0:00:22.9]}
26... g5 {[%clk 0:01:38.3]} 0-1

[Event "Late-Titled-Tuesday-Blitz-September-05-2023"]
[Site "Chess.com"]
[Date "2023.09.05"]
[Round "1"]
[White "DvaHrasta"]
[Black "FabianoCaruana"]
[Result "0-1"]
[WhiteElo "2497"]
[BlackElo "3064"]
[TimeControl "180+1"]
[EndTime "14:05:18 PDT"]
[Termination "FabianoCaruana won on time"]

1. c4 {[%clk 0:03:00.9]} 1... e6 {[%clk 0:02:57.4]} 2. g3 {[%clk 0:03:00.7]}
2... d5 {[%clk 0:02:57.1]} 3. Bg2 {[%clk 0:03:00.9]} 3... dxc4 {[%clk 0:02:57]}
4. Nf3 {[%clk 0:03:00.7]} 4... c6 {[%clk 0:02:56.1]} 5. O-O {[%clk 0:03:00.1]}
5... b5 {[%clk 0:02:55.8]} 6. a4 {[%clk 0:03:00.2]} 6... Bb7 {[%clk 0:02:55.7]}
7. b3 {[%clk 0:02:59.5]} 7... cxb3 {[%clk 0:02:55.1]} 8. Qxb3 {[%clk 0:02:59.7]}
8... a6 {[%clk 0:02:55.4]} 9. Bb2 {[%clk 0:02:59.6]} 9... Nf6 {[%clk 0:02:55.1]}
10. d4 {[%clk 0:02:58.1]} 10... Be7 {[%clk 0:02:54]} 11. Nbd2 {[%clk 0:02:58]}
11... Nbd7 {[%clk 0:02:53.6]} 12. e4 {[%clk 0:02:55.8]} 12... O-O {[%clk
0:02:53.5]} 13. Rfd1 {[%clk 0:02:43.6]} 13... Rb8 {[%clk 0:02:47.8]} 14. a5
{[%clk 0:02:36.8]} 14... c5 {[%clk 0:02:45.8]} 15. Ng5 {[%clk 0:01:59.6]} 15...
c4 {[%clk 0:02:38.7]} 16. Qc2 {[%clk 0:01:49]} 16... h6 {[%clk 0:02:38.6]} 17.
Nh3 {[%clk 0:01:44.8]} 17... Rc8 {[%clk 0:02:36.9]} 18. e5 {[%clk 0:01:27]}
18... Bxg2 {[%clk 0:02:33]} 19. Kxg2 {[%clk 0:01:22.4]} 19... Nd5 {[%clk
0:02:32.2]} 20. Ne4 {[%clk 0:01:19]} 20... b4 {[%clk 0:02:27.7]} 21. Nf4 {[%clk
0:01:06.4]} 21... b3 {[%clk 0:02:24.4]} 22. Qe2 {[%clk 0:00:58.3]} 22... Nxf4+
{[%clk 0:02:08.9]} 23. gxf4 {[%clk 0:00:58.4]} 23... f5 {[%clk 0:02:08.4]} 24.
Nd6 {[%clk 0:00:46.5]} 24... Bxd6 {[%clk 0:02:06]} 25. exd6 {[%clk 0:00:46.6]}
25... c3 {[%clk 0:01:57.5]} 26. Qxe6+ {[%clk 0:00:43.9]} 26... Kh7 {[%clk
0:01:58.1]} 27. Qxb3 {[%clk 0:00:26.7]} 27... cxb2 {[%clk 0:01:57.2]} 28. Qxb2
{[%clk 0:00:27.1]} 28... Rf6 {[%clk 0:01:56.9]} 29. Rdc1 {[%clk 0:00:15.2]}
29... Rxc1 {[%clk 0:01:55.6]} 30. Rxc1 {[%clk 0:00:10.4]} 30... Rg6+ {[%clk
0:01:56]} 31. Kf1 {[%clk 0:00:01.8]} 31... Qa8 {[%clk 0:01:56.9]} 0-1

[Event "Late-Titled-Tuesday-Blitz-September-05-2023"]
[Site "Chess.com"]
[Date "2023.09.05"]
[Round "1"]
[White "DenishevM"]
[Black "allvim"]
[Result "1-0"]
[WhiteElo "2630"]
[BlackElo "2325"]
[TimeControl "180+1"]
[EndTime "14:05:20 PDT"]
[Termination "DenishevM won by resignation"]

1. d4 {[%clk 0:03:00.1]} 1... Nf6 {[%clk 0:02:57.7]} 2. c4 {[%clk 0:02:59]} 2...
e6 {[%clk 0:02:57.2]} 3. Nf3 {[%clk 0:02:58.4]} 3... b6 {[%clk 0:02:56.7]} 4.
Nc3 {[%clk 0:02:57.7]} 4... Bb4 {[%clk 0:02:55.6]} 5. Bg5 {[%clk 0:02:56.6]}
5... Bb7 {[%clk 0:02:55.1]} 6. e3 {[%clk 0:02:56.2]} 6... h6 {[%clk 0:02:50]} 7.
Bh4 {[%clk 0:02:55.4]} 7... d6 {[%clk 0:02:41.7]} 8. Qc2 {[%clk 0:02:52.8]} 8...
Nbd7 {[%clk 0:02:38.4]} 9. Bd3 {[%clk 0:02:51.3]} 9... O-O {[%clk 0:02:37.2]}
10. O-O {[%clk 0:02:50.1]} 10... Bxc3 {[%clk 0:02:37.7]} 11. bxc3 {[%clk
0:02:48.5]} 11... Qe8 {[%clk 0:02:25.7]} 12. e4 {[%clk 0:02:46.3]} 12... e5
{[%clk 0:02:24.8]} 13. Rae1 {[%clk 0:02:45.6]} 13... Nh5 {[%clk 0:02:09.1]} 14.
Bg3 {[%clk 0:02:41.1]} 14... Nxg3 {[%clk 0:02:07.8]} 15. fxg3 {[%clk 0:02:39]}
15... Kh8 {[%clk 0:01:31.9]} 16. Nh4 {[%clk 0:02:36.9]} 16... g6 {[%clk
0:01:18.1]} 17. Rf2 {[%clk 0:02:32.4]} 17... c5 {[%clk 0:01:10.1]} 18. d5 {[%clk
0:02:29]} 18... Qe7 {[%clk 0:01:06]} 19. Ref1 {[%clk 0:02:27.8]} 19... Kg7
{[%clk 0:00:56.1]} 20. Be2 {[%clk 0:02:24.2]} 20... Bc8 {[%clk 0:00:52.2]} 21.
Bg4 {[%clk 0:02:22.9]} 21... Rb8 {[%clk 0:00:44.2]} 22. Rf3 {[%clk 0:02:19.4]}
22... a6 {[%clk 0:00:42.6]} 23. Qf2 {[%clk 0:02:17.3]} 23... f6 {[%clk
0:00:36.9]} 24. Be6 {[%clk 0:02:11.6]} 24... b5 {[%clk 0:00:34.9]} 25. cxb5
{[%clk 0:01:59.2]} 25... axb5 {[%clk 0:00:35.8]} 26. Bf5 {[%clk 0:01:51.2]}
26... g5 {[%clk 0:00:02.1]} 27. Ng6 {[%clk 0:01:49.7]} 27... Qf7 {[%clk
0:00:02]} 28. Nxf8 {[%clk 0:01:48.3]} 28... Qxf8 {[%clk 0:00:02.9]} 29. Bxd7
{[%clk 0:01:47.4]} 29... Bxd7 {[%clk 0:00:03.8]} 30. Rxf6 {[%clk 0:01:47]} 1-0

[Event "Late-Titled-Tuesday-Blitz-September-05-2023"]
[Site "Chess.com"]
[Date "2023.09.05"]
[Round "1"]
[White "jk13"]
[Black "rickywsb"]
[Result "1-0"]
[WhiteElo "2676"]
[BlackElo "2373"]
[TimeControl "180+1"]
[EndTime "14:05:21 PDT"]
[Termination "jk13 won by resignation"]

1. Nf3 {[%clk 0:02:57.6]} 1... d5 {[%clk 0:02:58.3]} 2. g3 {[%clk 0:02:58.5]}
2... Nf6 {[%clk 0:02:55.7]} 3. Bg2 {[%clk 0:02:59.2]} 3... c6 {[%clk 0:02:54.2]}
4. O-O {[%clk 0:02:59.8]} 4... Bf5 {[%clk 0:02:52.8]} 5. d3 {[%clk 0:03:00.7]}
5... h5 {[%clk 0:02:49.9]} 6. Bg5 {[%clk 0:02:57.6]} 6... Nbd7 {[%clk 0:02:49]}
7. Nbd2 {[%clk 0:02:55.6]} 7... Qc7 {[%clk 0:02:47.5]} 8. Re1 {[%clk 0:02:55.3]}
8... O-O-O {[%clk 0:02:34.6]} 9. e4 {[%clk 0:02:52.3]} 9... dxe4 {[%clk
0:02:34.1]} 10. dxe4 {[%clk 0:02:52.2]} 10... Bg4 {[%clk 0:02:34.8]} 11. h3
{[%clk 0:02:43]} 11... Bxf3 {[%clk 0:02:29.9]} 12. Qxf3 {[%clk 0:02:43.9]} 12...
Ne5 {[%clk 0:02:29.3]} 13. Qe2 {[%clk 0:02:43.3]} 13... h4 {[%clk 0:02:28.9]}
14. g4 {[%clk 0:02:41.9]} 14... Ng6 {[%clk 0:02:27.5]} 15. Qe3 {[%clk
0:02:32.8]} 15... e5 {[%clk 0:02:27]} 16. Qxa7 {[%clk 0:02:23.7]} 16... Nf4
{[%clk 0:02:26.8]} 17. Nc4 {[%clk 0:02:08.9]} 17... Rd4 {[%clk 0:02:00.2]} 18.
Nb6+ {[%clk 0:02:01.8]} 18... Kd8 {[%clk 0:02:00.1]} 19. Bxf4 {[%clk 0:01:50.2]}
19... exf4 {[%clk 0:01:58.9]} 20. e5 {[%clk 0:01:51.1]} 20... Nxg4 {[%clk
0:01:45.9]} 21. hxg4 {[%clk 0:01:40.3]} 21... h3 {[%clk 0:01:46.3]} 22. Bf3
{[%clk 0:01:40]} 22... h2+ {[%clk 0:01:46]} 23. Kh1 {[%clk 0:01:40.2]} 23... Rh3
{[%clk 0:01:42.1]} 24. Rad1 {[%clk 0:01:28.6]} 24... Bc5 {[%clk 0:01:38.3]} 25.
Rxd4+ {[%clk 0:01:15.2]} 25... Bxd4 {[%clk 0:01:38.2]} 26. Rd1 {[%clk 0:01:16]}
26... Qxe5 {[%clk 0:01:34.2]} 27. c3 {[%clk 0:00:39.7]} 27... c5 {[%clk
0:01:12.2]} 28. cxd4 {[%clk 0:00:38.2]} 1-0

[Event "Late-Titled-Tuesday-Blitz-September-05-2023"]
[Site "Chess.com"]
[Date "2023.09.05"]
[Round "1"]
[White "ilya2700"]
[Black "Emeraldddd"]
[Result "0-1"]
[WhiteElo "2233"]
[BlackElo "2550"]
[TimeControl "180+1"]
[EndTime "14:05:26 PDT"]
[Termination "Emeraldddd won by resignation"]

1. c4 {[%clk 0:02:58.8]} 1... g6 {[%clk 0:02:57.3]} 2. Nc3 {[%clk 0:02:58.3]}
2... Bg7 {[%clk 0:02:58.2]} 3. e4 {[%clk 0:02:57]} 3... d6 {[%clk 0:02:59.1]} 4.
d4 {[%clk 0:02:56.9]} 4... Nf6 {[%clk 0:02:57.1]} 5. Nf3 {[%clk 0:02:56.8]} 5...
O-O {[%clk 0:02:57.3]} 6. Be2 {[%clk 0:02:57.3]} 6... c5 {[%clk 0:02:54.9]} 7.
O-O {[%clk 0:02:56.2]} 7... Bg4 {[%clk 0:02:43.5]} 8. Be3 {[%clk 0:02:52.8]}
8... cxd4 {[%clk 0:02:29.6]} 9. Nxd4 {[%clk 0:02:50]} 9... Bxe2 {[%clk
0:02:30.5]} 10. Qxe2 {[%clk 0:02:45.5]} 10... Nbd7 {[%clk 0:02:30.1]} 11. f4
{[%clk 0:02:43]} 11... Qa5 {[%clk 0:02:28.1]} 12. g4 {[%clk 0:02:35.8]} 12... e5
{[%clk 0:02:26.3]} 13. fxe5 {[%clk 0:02:28.7]} 13... Nxe5 {[%clk 0:02:27.2]} 14.
g5 {[%clk 0:02:25.8]} 14... Nh5 {[%clk 0:01:58.9]} 15. Nd5 {[%clk 0:02:21]}
15... Rfe8 {[%clk 0:01:48.2]} 16. b4 {[%clk 0:01:33.6]} 16... Qa3 {[%clk
0:01:31.4]} 17. Nf5 {[%clk 0:01:29.6]} 17... gxf5 {[%clk 0:01:19]} 18. Qxh5
{[%clk 0:01:26.7]} 18... Nxc4 {[%clk 0:01:18.8]} 19. Bc1 {[%clk 0:01:20.4]}
19... Qd3 {[%clk 0:01:07.7]} 20. Rf2 {[%clk 0:00:55.1]} 20... Rxe4 {[%clk
0:01:00.5]} 21. Bf4 {[%clk 0:00:50]} 21... Qxd5 {[%clk 0:00:52.2]} 0-1

[Event "Late-Titled-Tuesday-Blitz-September-05-2023"]
[Site "Chess.com"]
[Date "2023.09.05"]
[Round "1"]
[White "boguszp"]
[Black "2k28Lakers"]
[Result "0-1"]
[WhiteElo "2051"]
[BlackElo "2517"]
[TimeControl "180+1"]
[EndTime "14:05:26 PDT"]
[Termination "2k28Lakers won by resignation"]

1. d4 {[%clk 0:02:59.5]} 1... d5 {[%clk 0:02:59.5]} 2. Nf3 {[%clk 0:02:59.6]}
2... c6 {[%clk 0:03:00.1]} 3. Bf4 {[%clk 0:02:59.4]} 3... Nf6 {[%clk 0:02:59.3]}
4. e3 {[%clk 0:02:59.7]} 4... Bf5 {[%clk 0:02:59.6]} 5. Be2 {[%clk 0:02:59.5]}
5... e6 {[%clk 0:02:57.5]} 6. h3 {[%clk 0:02:59.8]} 6... Bd6 {[%clk 0:02:58]} 7.
Ne5 {[%clk 0:02:56.9]} 7... O-O {[%clk 0:02:57.8]} 8. O-O {[%clk 0:02:55.8]}
8... Qc7 {[%clk 0:02:57.3]} 9. Nd2 {[%clk 0:02:45.7]} 9... Nbd7 {[%clk
0:02:57.3]} 10. Ndf3 {[%clk 0:02:46.2]} 10... c5 {[%clk 0:02:57.1]} 11. c3
{[%clk 0:02:45]} 11... Ne4 {[%clk 0:02:55.6]} 12. Rc1 {[%clk 0:02:43.2]} 12...
f6 {[%clk 0:02:53]} 13. Nd3 {[%clk 0:02:43.5]} 13... c4 {[%clk 0:02:47.4]} 14.
Bxd6 {[%clk 0:02:41.9]} 14... Qxd6 {[%clk 0:02:48.3]} 15. Nde1 {[%clk 0:02:37]}
15... b5 {[%clk 0:02:47]} 16. a3 {[%clk 0:02:34]} 16... a5 {[%clk 0:02:36.5]}
17. Nd2 {[%clk 0:02:34.4]} 17... Bg6 {[%clk 0:02:30.2]} 18. Nxe4 {[%clk
0:02:34]} 18... Bxe4 {[%clk 0:02:31.1]} 19. f3 {[%clk 0:02:33.8]} 19... Bg6
{[%clk 0:02:30.7]} 20. Nc2 {[%clk 0:02:31]} 20... Rfb8 {[%clk 0:02:26.5]} 21.
Re1 {[%clk 0:02:26.1]} 21... Bxc2 {[%clk 0:02:21.4]} 22. Qxc2 {[%clk 0:02:24.1]}
22... b4 {[%clk 0:02:22.3]} 23. axb4 {[%clk 0:02:23.3]} 23... axb4 {[%clk
0:02:22.6]} 24. Ra1 {[%clk 0:02:19.7]} 24... bxc3 {[%clk 0:02:16.7]} 25. bxc3
{[%clk 0:02:17.6]} 25... Rxa1 {[%clk 0:02:13.9]} 26. Rxa1 {[%clk 0:02:16.2]}
26... Qb6 {[%clk 0:02:14.5]} 27. e4 {[%clk 0:02:10.7]} 27... Qb2 {[%clk
0:02:06.5]} 28. Rc1 {[%clk 0:02:10.1]} 28... Qxc2 {[%clk 0:02:03.5]} 29. Rxc2
{[%clk 0:02:09.6]} 29... Rb3 {[%clk 0:02:02.1]} 30. Kf2 {[%clk 0:02:08]} 30...
Kf7 {[%clk 0:01:55.7]} 31. Ke3 {[%clk 0:02:06.5]} 31... Ke7 {[%clk 0:01:55.9]}
32. Kd2 {[%clk 0:02:06.8]} 32... Kd6 {[%clk 0:01:55.5]} 33. Ra2 {[%clk
0:02:06.8]} 33... Rb1 {[%clk 0:01:53.3]} 34. Bd1 {[%clk 0:02:06.4]} 34... g5
{[%clk 0:01:49.7]} 35. Ra8 {[%clk 0:02:04.3]} 35... Ke7 {[%clk 0:01:47.2]} 36.
Rh8 {[%clk 0:02:02.1]} 36... Nf8 {[%clk 0:01:44.6]} 37. Rg8 {[%clk 0:02:00.2]}
37... Kf7 {[%clk 0:01:42.4]} 38. Rxf8+ {[%clk 0:01:52.8]} 38... Kxf8 {[%clk
0:01:42.5]} 39. exd5 {[%clk 0:01:50.3]} 39... exd5 {[%clk 0:01:42.5]} 40. g3
{[%clk 0:01:50.4]} 40... Kg7 {[%clk 0:01:28.8]} 41. f4 {[%clk 0:01:49.8]} 41...
Ra1 {[%clk 0:01:26.3]} 42. fxg5 {[%clk 0:01:48.7]} 42... fxg5 {[%clk 0:01:27.2]}
43. Bf3 {[%clk 0:01:48.3]} 43... Ra5 {[%clk 0:01:23.6]} 44. Ke3 {[%clk
0:01:46.9]} 44... Kf6 {[%clk 0:01:23.9]} 45. h4 {[%clk 0:01:46]} 45... gxh4
{[%clk 0:01:23.6]} 46. gxh4 {[%clk 0:01:45.4]} 46... Ke6 {[%clk 0:01:23.9]} 47.
Bg4+ {[%clk 0:01:40.4]} 47... Kd6 {[%clk 0:01:23.5]} 48. h5 {[%clk 0:01:35]}
48... Ra3 {[%clk 0:01:22.3]} 49. h6 {[%clk 0:01:35.6]} 49... Rxc3+ {[%clk
0:01:21.4]} 50. Kf4 {[%clk 0:01:27.2]} 50... Rd3 {[%clk 0:01:21.1]} 51. Bf5
{[%clk 0:01:27.8]} 51... Rxd4+ {[%clk 0:01:21.3]} 52. Be4 {[%clk 0:01:28.4]}
52... Rxe4+ {[%clk 0:01:21.1]} 0-1

[Event "Late-Titled-Tuesday-Blitz-September-05-2023"]
[Site "Chess.com"]
[Date "2023.09.05"]
[Round "1"]
[White "Akhayan"]
[Black "GP9isback23"]
[Result "0-1"]
[WhiteElo "2363"]
[BlackElo "2669"]
[TimeControl "180+1"]
[EndTime "14:05:28 PDT"]
[Termination "GP9isback23 won by resignation"]

1. e4 {[%clk 0:02:59.7]} 1... c5 {[%clk 0:02:59.8]} 2. Nf3 {[%clk 0:02:58.6]}
2... e6 {[%clk 0:03:00]} 3. d4 {[%clk 0:02:58.2]} 3... cxd4 {[%clk 0:03:00.9]}
4. Nxd4 {[%clk 0:02:58]} 4... Nf6 {[%clk 0:03:01.7]} 5. Nc3 {[%clk 0:02:57.7]}
5... Nc6 {[%clk 0:03:02.1]} 6. Nxc6 {[%clk 0:02:57.3]} 6... bxc6 {[%clk
0:03:02.2]} 7. e5 {[%clk 0:02:57.7]} 7... Nd5 {[%clk 0:03:02.6]} 8. Ne4 {[%clk
0:02:57.4]} 8... Qc7 {[%clk 0:03:03.2]} 9. f4 {[%clk 0:02:56.8]} 9... Qb6 {[%clk
0:03:00.8]} 10. a3 {[%clk 0:02:56.7]} 10... f5 {[%clk 0:02:53.9]} 11. exf6
{[%clk 0:02:53.2]} 11... Nxf6 {[%clk 0:02:53.9]} 12. Nxf6+ {[%clk 0:02:52.5]}
12... gxf6 {[%clk 0:02:54.8]} 13. Qh5+ {[%clk 0:02:51.7]} 13... Kd8 {[%clk
0:02:55.4]} 14. Bd3 {[%clk 0:02:43.7]} 14... Ba6 {[%clk 0:02:42.4]} 15. Qe2
{[%clk 0:02:35.4]} 15... Bxd3 {[%clk 0:02:41.7]} 16. Qxd3 {[%clk 0:02:36]} 16...
Bc5 {[%clk 0:02:22.1]} 17. b4 {[%clk 0:02:22.9]} 17... Bf2+ {[%clk 0:02:17.1]}
18. Ke2 {[%clk 0:02:22.3]} 18... Qd4 {[%clk 0:02:17.3]} 19. Qxd4 {[%clk
0:02:15.4]} 19... Bxd4 {[%clk 0:02:16.3]} 20. Rb1 {[%clk 0:02:12.9]} 20... Ke7
{[%clk 0:02:13.9]} 21. Rd1 {[%clk 0:02:11.7]} 21... Bb6 {[%clk 0:02:14.2]} 22.
c4 {[%clk 0:02:08.5]} 22... d5 {[%clk 0:02:12]} 23. c5 {[%clk 0:01:59.3]} 23...
Bc7 {[%clk 0:02:11.9]} 24. g3 {[%clk 0:01:58.5]} 24... a6 {[%clk 0:02:12]} 25.
Bb2 {[%clk 0:01:58]} 25... e5 {[%clk 0:02:12.4]} 26. fxe5 {[%clk 0:01:49.5]}
26... fxe5 {[%clk 0:02:13.3]} 27. Rf1 {[%clk 0:01:47.6]} 27... Rhf8 {[%clk
0:02:13.5]} 28. Rxf8 {[%clk 0:01:46]} 28... Rxf8 {[%clk 0:02:14.4]} 29. Rf1
{[%clk 0:01:45.7]} 29... Rxf1 {[%clk 0:02:11.6]} 30. Kxf1 {[%clk 0:01:46.2]}
30... Ke6 {[%clk 0:02:11.2]} 31. Ke2 {[%clk 0:01:45]} 31... d4 {[%clk
0:02:11.9]} 32. g4 {[%clk 0:01:30.8]} 32... Kd5 {[%clk 0:02:09.8]} 33. h4 {[%clk
0:01:31.2]} 33... e4 {[%clk 0:02:10.4]} 34. g5 {[%clk 0:01:26.9]} 34... Bf4
{[%clk 0:02:10.6]} 35. a4 {[%clk 0:01:22.5]} 35... d3+ {[%clk 0:02:08.9]} 36.
Kf2 {[%clk 0:01:22.4]} 36... Kc4 {[%clk 0:01:44]} 37. b5 {[%clk 0:01:20.4]}
37... axb5 {[%clk 0:01:37.7]} 38. a5 {[%clk 0:01:20.5]} 38... Kxc5 {[%clk
0:01:36.6]} 39. Bf6 {[%clk 0:01:08.2]} 39... b4 {[%clk 0:01:32.7]} 40. Be7+
{[%clk 0:01:08.2]} 40... Kb5 {[%clk 0:01:32.8]} 41. a6 {[%clk 0:01:08.1]} 41...
Kxa6 {[%clk 0:01:32.7]} 42. Bxb4 {[%clk 0:01:08.4]} 42... Kb5 {[%clk 0:01:33.2]}
43. Be7 {[%clk 0:01:06.7]} 43... e3+ {[%clk 0:01:28]} 44. Kf3 {[%clk 0:01:06.1]}
44... e2 {[%clk 0:01:28.3]} 0-1

[Event "Late-Titled-Tuesday-Blitz-September-05-2023"]
[Site "Chess.com"]
[Date "2023.09.05"]
[Round "1"]
[White "ArmanGhevondyanchess"]
[Black "Nikachu"]
[Result "1-0"]
[WhiteElo "2537"]
[BlackElo "2169"]
[TimeControl "180+1"]
[EndTime "14:05:34 PDT"]
[Termination "ArmanGhevondyanchess won by resignation"]

1. Nf3 {[%clk 0:03:00.9]} 1... Nf6 {[%clk 0:02:59.1]} 2. d4 {[%clk 0:03:01.4]}
2... g6 {[%clk 0:02:59]} 3. g3 {[%clk 0:03:02.1]} 3... Bg7 {[%clk 0:02:59.3]} 4.
Bg2 {[%clk 0:03:03]} 4... O-O {[%clk 0:02:59.7]} 5. O-O {[%clk 0:03:03.9]} 5...
d5 {[%clk 0:03:00]} 6. b3 {[%clk 0:03:04.8]} 6... c5 {[%clk 0:02:58.4]} 7. Bb2
{[%clk 0:03:05.1]} 7... cxd4 {[%clk 0:02:58.3]} 8. Nxd4 {[%clk 0:03:02.4]} 8...
Nc6 {[%clk 0:02:58.9]} 9. Na3 {[%clk 0:03:02]} 9... e5 {[%clk 0:02:57.8]} 10.
Nxc6 {[%clk 0:03:02.2]} 10... bxc6 {[%clk 0:02:58.7]} 11. Bxe5 {[%clk
0:03:02.8]} 11... Re8 {[%clk 0:02:56.7]} 12. Bb2 {[%clk 0:03:02.4]} 12... Ba6
{[%clk 0:02:54.9]} 13. Re1 {[%clk 0:02:59.1]} 13... Qa5 {[%clk 0:02:51.5]} 14.
c4 {[%clk 0:02:56.4]} 14... Rad8 {[%clk 0:02:46]} 15. Qc2 {[%clk 0:02:54]} 15...
Ne4 {[%clk 0:02:39]} 16. Bxg7 {[%clk 0:02:52.8]} 16... Kxg7 {[%clk 0:02:38.9]}
17. Qb2+ {[%clk 0:02:52.6]} 17... Kg8 {[%clk 0:02:39]} 18. Rac1 {[%clk
0:02:50.7]} 18... dxc4 {[%clk 0:02:24.5]} 19. Nxc4 {[%clk 0:02:49.8]} 19... Bxc4
{[%clk 0:02:24.6]} 20. bxc4 {[%clk 0:02:50.7]} 20... Rd2 {[%clk 0:02:23.7]} 21.
Qb7 {[%clk 0:02:47]} 21... Qc5 {[%clk 0:01:39.3]} 22. Bxe4 {[%clk 0:02:37.9]}
22... Rxe4 {[%clk 0:01:38.7]} 23. Qc8+ {[%clk 0:02:22]} 23... Kg7 {[%clk
0:01:37.4]} 24. e3 {[%clk 0:02:22.2]} 24... Rxa2 {[%clk 0:01:33]} 25. Rcd1
{[%clk 0:02:19.6]} 25... Rxc4 {[%clk 0:01:30.2]} 26. Rd8 {[%clk 0:02:19.2]}
26... Rcc2 {[%clk 0:01:27]} 27. Rg8+ {[%clk 0:02:18.9]} 27... Kh6 {[%clk
0:01:24.7]} 28. Rf1 {[%clk 0:02:03.4]} 28... Rxf2 {[%clk 0:00:33.7]} 29. Rxf2
{[%clk 0:02:01.5]} 29... Ra1+ {[%clk 0:00:33.4]} 30. Kg2 {[%clk 0:01:57.6]}
30... Qd5+ {[%clk 0:00:33.8]} 31. Kh3 {[%clk 0:01:49.9]} 31... Qh5+ {[%clk
0:00:33.3]} 32. Kg2 {[%clk 0:01:48.3]} 32... Qd5+ {[%clk 0:00:33.3]} 33. e4
{[%clk 0:01:48.3]} 33... Qxe4+ {[%clk 0:00:33.2]} 34. Kh3 {[%clk 0:01:47.2]}
34... Ra5 {[%clk 0:00:30.5]} 35. Qf8+ {[%clk 0:01:45.3]} 35... Kg5 {[%clk
0:00:30.6]} 36. Qd8+ {[%clk 0:01:45]} 36... Kh5 {[%clk 0:00:12.8]} 37. Qxa5+
{[%clk 0:01:44.8]} 1-0